[Event "Titled Tuesday Blitz August 17 2021"]
[White "Sadovsky, Artem"]
[Black "Politov, Pavel Y."]
[WhiteFideId "4155840"]
[BlackFideId "24110515"]
[WhiteElo "2442"]
[BlackElo "2090"]
[Result "1-0"]
[Round "10"]
[TimeControl "180+1"]
[Date "2021.08.17"]
[WhiteClock "0:00:33"]
[BlackClock "0:00:32"]

1. h4 {[%clk 0:03:00]}  d5 {[%clk 0:02:50]} 2. d4 {[%clk 0:03:00]}  c5 {[%clk 0:02:48]} 3. c3 {[%clk 0:02:57]}  Nc6 {[%clk 0:02:47]} 4. dxc5 {[%clk 0:02:55]}  a5 {[%clk 0:02:45]} 5. e4 {[%clk 0:02:31]}  dxe4 {[%clk 0:02:42]} 6. Qxd8+ {[%clk 0:02:32]}  Nxd8 {[%clk 0:02:41]} 7. Be3 {[%clk 0:02:30]}  Nf6 {[%clk 0:02:31]} 8. Nd2 {[%clk 0:02:28]}  Ng4 {[%clk 0:02:15]} 9. Nxe4 {[%clk 0:02:20]}  Nxe3 {[%clk 0:02:15]} 10. fxe3 {[%clk 0:02:21]}  Bf5 {[%clk 0:02:09]} 11. Bb5+ {[%clk 0:01:59]}  Nc6 {[%clk 0:02:08]} 12. Nd2 {[%clk 0:01:56]}  e6 {[%clk 0:01:57]} 13. b4 {[%clk 0:01:56]}  Be7 {[%clk 0:01:42]} 14. Ngf3 {[%clk 0:01:45]}  O-O {[%clk 0:01:39]} 15. Bxc6 {[%clk 0:01:35]}  bxc6 {[%clk 0:01:38]} 16. e4 {[%clk 0:01:35]}  Bg4 {[%clk 0:01:38]} 17. Ne5 {[%clk 0:01:36]}  h5 {[%clk 0:01:30]} 18. Nxc6 {[%clk 0:01:31]}  Bf6 {[%clk 0:01:12]} 19. e5 {[%clk 0:01:31]}  Rfc8 {[%clk 0:01:06]} 20. exf6 {[%clk 0:01:08]}  Rxc6 {[%clk 0:01:05]} 21. fxg7 {[%clk 0:00:58]}  axb4 {[%clk 0:00:55]} 22. cxb4 {[%clk 0:00:59]}  Ra3 {[%clk 0:00:55]} 23. O-O {[%clk 0:00:41]}  Rc8 {[%clk 0:00:48]} 24. Ne4 {[%clk 0:00:39]}  Kxg7 {[%clk 0:00:44]} 25. Rxf7+ {[%clk 0:00:34]}  Kxf7 {[%clk 0:00:38]} 26. Nd6+ {[%clk 0:00:35]}  Kf6 {[%clk 0:00:37]} 27. Nxc8 {[%clk 0:00:36]}  Bf5 {[%clk 0:00:36]} 28. Nd6 {[%clk 0:00:34]}  Bg4 {[%clk 0:00:32]} 29. c6 {[%clk 0:00:33]}  Rc3 {[%clk 0:00:32]} 30. Ne4+ {[%clk 0:00:33]} 1-0


[Site "https://www.chess.com"]

[Event "Titled Tuesday Blitz August 17 2021"]
[White "Serikbay, Assel"]
[Black "Bach, Ngoc Thuy Duong"]
[WhiteFideId "13706799"]
[BlackFideId "12408956"]
[WhiteElo "2044"]
[BlackElo "1896"]
[Result "0-1"]
[Round "10"]
[TimeControl "180+1"]
[Date "2021.08.18"]
[WhiteClock "0:00:07"]
[BlackClock "0:00:13"]

1. e4 {[%clk 0:02:55]}  c5 {[%clk 0:02:59]} 2. Nf3 {[%clk 0:02:54]}  d6 {[%clk 0:02:59]} 3. d4 {[%clk 0:02:55]}  cxd4 {[%clk 0:03:00]} 4. Nxd4 {[%clk 0:02:55]}  Nf6 {[%clk 0:03:00]} 5. Nc3 {[%clk 0:02:55]}  a6 {[%clk 0:03:01]} 6. Bg5 {[%clk 0:02:49]}  e6 {[%clk 0:03:00]} 7. g4 {[%clk 0:02:45]}  Be7 {[%clk 0:02:56]} 8. Be2 {[%clk 0:02:38]}  Nc6 {[%clk 0:02:33]} 9. Nb3 {[%clk 0:02:24]}  Qc7 {[%clk 0:02:24]} 10. Qd2 {[%clk 0:02:21]}  b5 {[%clk 0:02:09]} 11. a3 {[%clk 0:02:05]}  Bb7 {[%clk 0:02:08]} 12. h4 {[%clk 0:02:01]}  Ne5 {[%clk 0:01:24]} 13. Bxf6 {[%clk 0:01:08]}  Bxf6 {[%clk 0:01:25]} 14. g5 {[%clk 0:01:08]}  Be7 {[%clk 0:01:24]} 15. f4 {[%clk 0:01:05]}  Nc4 {[%clk 0:01:21]} 16. Bxc4 {[%clk 0:01:05]}  bxc4 {[%clk 0:01:21]} 17. Nd4 {[%clk 0:01:04]}  Rd8 {[%clk 0:01:10]} 18. f5 {[%clk 0:00:59]}  e5 {[%clk 0:00:49]} 19. Nf3 {[%clk 0:00:57]}  d5 {[%clk 0:00:49]} 20. exd5 {[%clk 0:00:45]}  e4 {[%clk 0:00:49]} 21. Nd4 {[%clk 0:00:41]}  Bxd5 {[%clk 0:00:42]} 22. Nxd5 {[%clk 0:00:36]}  Rxd5 {[%clk 0:00:41]} 23. c3 {[%clk 0:00:36]}  Bc5 {[%clk 0:00:24]} 24. O-O-O {[%clk 0:00:33]}  Bxd4 {[%clk 0:00:20]} 25. cxd4 {[%clk 0:00:31]}  O-O {[%clk 0:00:20]} 26. Qc3 {[%clk 0:00:29]}  Rfd8 {[%clk 0:00:19]} 27. f6 {[%clk 0:00:29]}  Qf4+ {[%clk 0:00:18]} 28. Kb1 {[%clk 0:00:28]}  e3 {[%clk 0:00:16]} 29. Rhf1 {[%clk 0:00:27]}  Qe4+ {[%clk 0:00:16]} 30. Ka1 {[%clk 0:00:26]}  e2 {[%clk 0:00:16]} 31. fxg7 {[%clk 0:00:13]}  exd1=Q+ {[%clk 0:00:16]} 32. Rxd1 {[%clk 0:00:13]}  Rxd4 {[%clk 0:00:16]} 33. Rc1 {[%clk 0:00:10]}  Rd1 {[%clk 0:00:15]} 34. Ka2 {[%clk 0:00:09]}  Rxc1 {[%clk 0:00:15]} 35. Qxc1 {[%clk 0:00:09]}  Qd5 {[%clk 0:00:15]} 36. Qc3 {[%clk 0:00:08]}  Qd4 {[%clk 0:00:16]} 37. Qb4 {[%clk 0:00:07]}  Kxg7 {[%clk 0:00:14]} 38. Qe7 {[%clk 0:00:08]}  c3 {[%clk 0:00:13]} 39. h5 {[%clk 0:00:07]}  Qc4+ {[%clk 0:00:13]} 0-1


[Site "https://www.chess.com"]

[Event "Titled Tuesday Blitz August 17 2021"]
[White "Seul, Georg"]
[Black "Nemeth Junior, Henrique"]
[WhiteFideId "4601653"]
[BlackFideId "2118815"]
[WhiteElo "2332"]
[BlackElo "1976"]
[Result "1-0"]
[Round "10"]
[TimeControl "180+1"]
[Date "2021.08.17"]
[WhiteClock "0:00:51"]
[BlackClock "0:00:26"]

1. e4 {[%clk 0:03:00]}  c5 {[%clk 0:02:59]} 2. Nf3 {[%clk 0:03:00]}  e6 {[%clk 0:02:59]} 3. d4 {[%clk 0:02:59]}  cxd4 {[%clk 0:03:00]} 4. Nxd4 {[%clk 0:02:58]}  Nc6 {[%clk 0:03:00]} 5. Nxc6 {[%clk 0:02:55]}  bxc6 {[%clk 0:03:00]} 6. Bd3 {[%clk 0:02:55]}  Nf6 {[%clk 0:02:57]} 7. O-O {[%clk 0:02:54]}  d5 {[%clk 0:02:57]} 8. Nd2 {[%clk 0:02:53]}  Be7 {[%clk 0:02:54]} 9. Qe2 {[%clk 0:02:52]}  O-O {[%clk 0:02:53]} 10. e5 {[%clk 0:02:48]}  Nd7 {[%clk 0:02:49]} 11. f4 {[%clk 0:02:46]}  g6 {[%clk 0:02:49]} 12. Nf3 {[%clk 0:02:39]}  Nc5 {[%clk 0:02:38]} 13. Be3 {[%clk 0:02:39]}  Nxd3 {[%clk 0:02:38]} 14. cxd3 {[%clk 0:02:39]}  c5 {[%clk 0:02:34]} 15. d4 {[%clk 0:02:12]}  a5 {[%clk 0:02:24]} 16. Rfc1 {[%clk 0:02:05]}  Ba6 {[%clk 0:02:19]} 17. Qf2 {[%clk 0:02:04]}  c4 {[%clk 0:02:13]} 18. Kh1 {[%clk 0:01:55]}  Rb8 {[%clk 0:02:13]} 19. Rc3 {[%clk 0:01:54]}  Rb7 {[%clk 0:02:01]} 20. Rg1 {[%clk 0:01:51]}  Qb8 {[%clk 0:01:55]} 21. Bc1 {[%clk 0:01:51]}  Rc8 {[%clk 0:01:50]} 22. g4 {[%clk 0:01:48]}  Bb4 {[%clk 0:01:49]} 23. f5 {[%clk 0:01:46]}  Bxc3 {[%clk 0:01:48]} 24. bxc3 {[%clk 0:01:45]}  Rb1 {[%clk 0:01:47]} 25. Qh4 {[%clk 0:01:44]}  exf5 {[%clk 0:01:10]} 26. Ng5 {[%clk 0:01:27]}  h5 {[%clk 0:01:07]} 27. gxh5 {[%clk 0:01:25]}  Rxc1 {[%clk 0:01:02]} 28. Rxc1 {[%clk 0:01:20]}  Qb2 {[%clk 0:00:54]} 29. Rg1 {[%clk 0:01:19]}  Kg7 {[%clk 0:00:50]} 30. hxg6 {[%clk 0:00:53]}  Rh8 {[%clk 0:00:48]} 31. Nh7 {[%clk 0:00:53]}  fxg6 {[%clk 0:00:32]} 32. Qf6+ {[%clk 0:00:52]}  Kxh7 {[%clk 0:00:26]} 33. Qxg6# {[%clk 0:00:51]} 1-0


[Site "https://www.chess.com"]

[Event "Titled Tuesday Blitz August 17 2021"]
[White "Shahade, Gregory"]
[Black "Rozhkov, Viacheslav"]
[WhiteFideId "2009064"]
[BlackFideId "4181484"]
[WhiteElo "2681"]
[BlackElo "2324"]
[Result "1-0"]
[Round "10"]
[TimeControl "180+1"]
[Date "2021.08.17"]
[WhiteClock "0:00:14"]
[BlackClock "0:00:04"]

1. e4 {[%clk 0:03:00]}  c5 {[%clk 0:02:38]} 2. Nf3 {[%clk 0:03:00]}  d6 {[%clk 0:02:38]} 3. d4 {[%clk 0:03:00]}  cxd4 {[%clk 0:02:38]} 4. Nxd4 {[%clk 0:03:01]}  Nf6 {[%clk 0:02:37]} 5. Nc3 {[%clk 0:03:01]}  Nc6 {[%clk 0:02:37]} 6. f3 {[%clk 0:03:00]}  Bd7 {[%clk 0:02:33]} 7. Be3 {[%clk 0:02:58]}  Rc8 {[%clk 0:02:33]} 8. Qd2 {[%clk 0:02:41]}  Ne5 {[%clk 0:02:33]} 9. O-O-O {[%clk 0:02:39]}  Nc4 {[%clk 0:02:33]} 10. Bxc4 {[%clk 0:02:39]}  Rxc4 {[%clk 0:02:34]} 11. g4 {[%clk 0:02:36]}  h6 {[%clk 0:02:31]} 12. h4 {[%clk 0:02:35]}  Qa5 {[%clk 0:02:27]} 13. g5 {[%clk 0:02:27]}  Nh5 {[%clk 0:02:27]} 14. Nb3 {[%clk 0:02:20]}  Qd8 {[%clk 0:02:20]} 15. g6 {[%clk 0:02:16]}  fxg6 {[%clk 0:02:18]} 16. Qg2 {[%clk 0:02:05]}  Be6 {[%clk 0:01:58]} 17. Qxg6+ {[%clk 0:01:52]}  Bf7 {[%clk 0:01:58]} 18. Qg2 {[%clk 0:01:48]}  Nf6 {[%clk 0:01:45]} 19. e5 {[%clk 0:01:43]}  Nh5 {[%clk 0:01:27]} 20. exd6 {[%clk 0:01:42]}  exd6 {[%clk 0:01:24]} 21. Rhe1 {[%clk 0:01:19]}  Be7 {[%clk 0:01:23]} 22. Bd4 {[%clk 0:01:15]}  O-O {[%clk 0:01:13]} 23. Ne4 {[%clk 0:01:12]}  d5 {[%clk 0:01:00]} 24. Bc3 {[%clk 0:01:01]}  Qc7 {[%clk 0:00:52]} 25. Rg1 {[%clk 0:00:40]}  dxe4 {[%clk 0:00:19]} 26. Bxg7 {[%clk 0:00:39]}  Rxc2+ {[%clk 0:00:18]} 27. Qxc2 {[%clk 0:00:36]}  Qxc2+ {[%clk 0:00:18]} 28. Kxc2 {[%clk 0:00:37]}  Nxg7 {[%clk 0:00:14]} 29. fxe4 {[%clk 0:00:35]}  Kh7 {[%clk 0:00:07]} 30. Rd7 {[%clk 0:00:35]}  Bf6 {[%clk 0:00:08]} 31. Rxb7 {[%clk 0:00:33]}  Bg6 {[%clk 0:00:07]} 32. Kd3 {[%clk 0:00:16]}  Re8 {[%clk 0:00:04]} 33. Nd2 {[%clk 0:00:14]} 1-0


[Site "https://www.chess.com"]

[Event "Titled Tuesday Blitz August 17 2021"]
[White "Shapiro, David"]
[Black "Dang, Hoang Son"]
[WhiteFideId "24133523"]
[BlackFideId "12402435"]
[WhiteElo "2234"]
[BlackElo "2248"]
[Result "1-0"]
[Round "10"]
[TimeControl "180+1"]
[Date "2021.08.17"]
[WhiteClock "0:00:05"]
[BlackClock "0:00:05"]

1. d4 {[%clk 0:02:59]}  Nf6 {[%clk 0:03:00]} 2. Bf4 {[%clk 0:02:58]}  g6 {[%clk 0:03:01]} 3. Nc3 {[%clk 0:02:57]}  Bg7 {[%clk 0:03:02]} 4. e4 {[%clk 0:02:58]}  O-O {[%clk 0:03:02]} 5. Qd2 {[%clk 0:02:58]}  d5 {[%clk 0:03:03]} 6. e5 {[%clk 0:02:57]}  Ne4 {[%clk 0:03:03]} 7. Nxe4 {[%clk 0:02:57]}  dxe4 {[%clk 0:03:04]} 8. O-O-O {[%clk 0:02:57]}  c5 {[%clk 0:02:59]} 9. Bh6 {[%clk 0:02:48]}  Qxd4 {[%clk 0:02:55]} 10. Bxg7 {[%clk 0:01:31]}  Qxd2+ {[%clk 0:02:52]} 11. Rxd2 {[%clk 0:01:32]}  Kxg7 {[%clk 0:02:53]} 12. Re2 {[%clk 0:01:32]}  Bf5 {[%clk 0:02:45]} 13. h3 {[%clk 0:01:32]}  h5 {[%clk 0:02:45]} 14. g4 {[%clk 0:01:32]}  hxg4 {[%clk 0:02:44]} 15. hxg4 {[%clk 0:01:33]}  Be6 {[%clk 0:02:40]} 16. Bg2 {[%clk 0:01:28]}  Nc6 {[%clk 0:02:41]} 17. Bxe4 {[%clk 0:01:28]}  Nxe5 {[%clk 0:02:41]} 18. Bxb7 {[%clk 0:01:24]}  Rab8 {[%clk 0:02:37]} 19. Rxe5 {[%clk 0:01:24]}  Rxb7 {[%clk 0:02:38]} 20. f3 {[%clk 0:01:24]}  Bxa2 {[%clk 0:02:35]} 21. Rxc5 {[%clk 0:01:18]}  Be6 {[%clk 0:02:35]} 22. Ne2 {[%clk 0:01:17]}  f6 {[%clk 0:02:30]} 23. Nd4 {[%clk 0:01:12]}  Bf7 {[%clk 0:02:29]} 24. f4 {[%clk 0:01:12]}  Rd8 {[%clk 0:02:29]} 25. c3 {[%clk 0:01:12]}  Rdb8 {[%clk 0:02:25]} 26. Rh2 {[%clk 0:01:11]}  Re8 {[%clk 0:02:18]} 27. f5 {[%clk 0:01:11]}  g5 {[%clk 0:02:17]} 28. Re2 {[%clk 0:01:09]}  Rh8 {[%clk 0:02:13]} 29. Rb5 {[%clk 0:00:41]}  Rc7 {[%clk 0:02:04]} 30. Ne6+ {[%clk 0:00:38]}  Bxe6 {[%clk 0:02:03]} 31. Rxe6 {[%clk 0:00:39]}  Rh1+ {[%clk 0:01:58]} 32. Kc2 {[%clk 0:00:37]}  Rg1 {[%clk 0:01:58]} 33. Rb4 {[%clk 0:00:37]}  Kf7 {[%clk 0:01:58]} 34. Kb3 {[%clk 0:00:36]}  Rg2 {[%clk 0:01:57]} 35. Ree4 {[%clk 0:00:35]}  Rd7 {[%clk 0:01:50]} 36. Red4 {[%clk 0:00:33]}  Rc7 {[%clk 0:01:46]} 37. Rbc4 {[%clk 0:00:31]}  Rb7+ {[%clk 0:01:41]} 38. Rb4 {[%clk 0:00:31]}  Rc7 {[%clk 0:01:27]} 39. Rb8 {[%clk 0:00:25]}  a5 {[%clk 0:01:23]} 40. Rb5 {[%clk 0:00:24]}  Ra7 {[%clk 0:01:21]} 41. Ka4 {[%clk 0:00:24]}  Rg1 {[%clk 0:01:20]} 42. Kb3 {[%clk 0:00:24]}  a4+ {[%clk 0:01:15]} 43. Ka2 {[%clk 0:00:18]}  Rg2 {[%clk 0:01:13]} 44. Ka3 {[%clk 0:00:17]}  Rg1 {[%clk 0:01:07]} 45. Ka2 {[%clk 0:00:17]}  Rc1 {[%clk 0:01:02]} 46. Rc4 {[%clk 0:00:15]}  Ke8 {[%clk 0:00:55]} 47. Rbb4 {[%clk 0:00:14]}  a3 {[%clk 0:00:51]} 48. bxa3 {[%clk 0:00:15]}  Rc2+ {[%clk 0:00:49]} 49. Kb3 {[%clk 0:00:15]}  Rc1 {[%clk 0:00:47]} 50. a4 {[%clk 0:00:16]}  Ra1 {[%clk 0:00:47]} 51. Re4 {[%clk 0:00:09]}  Rb1+ {[%clk 0:00:43]} 52. Kc2 {[%clk 0:00:06]}  Ra1 {[%clk 0:00:41]} 53. Kb2 {[%clk 0:00:05]}  Rg1 {[%clk 0:00:40]} 54. Rb5 {[%clk 0:00:05]}  Rg3 {[%clk 0:00:39]} 55. a5 {[%clk 0:00:05]}  Rc7 {[%clk 0:00:39]} 56. a6 {[%clk 0:00:05]}  Rgxc3 {[%clk 0:00:38]} 57. Rb8+ {[%clk 0:00:04]}  Kf7 {[%clk 0:00:38]} 58. Rb7 {[%clk 0:00:03]}  Rc2+ {[%clk 0:00:36]} 59. Kb3 {[%clk 0:00:04]}  R7c3+ {[%clk 0:00:35]} 60. Kb4 {[%clk 0:00:04]}  Rc8 {[%clk 0:00:27]} 61. Rexe7+ {[%clk 0:00:04]}  Kg8 {[%clk 0:00:27]} 62. a7 {[%clk 0:00:03]}  R2c4+ {[%clk 0:00:25]} 63. Ka5 {[%clk 0:00:03]}  R4c5+ {[%clk 0:00:19]} 64. Rb5 {[%clk 0:00:03]}  Rc1 {[%clk 0:00:14]} 65. Ka6 {[%clk 0:00:04]}  Kf8 {[%clk 0:00:12]} 66. Rd7 {[%clk 0:00:03]}  Ke8 {[%clk 0:00:12]} 67. Rh7 {[%clk 0:00:03]}  Ra1+ {[%clk 0:00:08]} 68. Kb7 {[%clk 0:00:03]}  Rc4 {[%clk 0:00:05]} 69. a8=Q+ {[%clk 0:00:03]}  Rxa8 {[%clk 0:00:04]} 70. Kxa8 {[%clk 0:00:04]}  Ra4+ {[%clk 0:00:05]} 71. Kb8 {[%clk 0:00:04]}  Rxg4 {[%clk 0:00:05]} 72. Rc5 {[%clk 0:00:04]}  Rb4+ {[%clk 0:00:05]} 73. Ka7 {[%clk 0:00:05]}  Ra4+ {[%clk 0:00:06]} 74. Kb7 {[%clk 0:00:05]}  Rb4+ {[%clk 0:00:06]} 75. Ka6 {[%clk 0:00:05]}  Ra4+ {[%clk 0:00:05]} 76. Kb5 {[%clk 0:00:05]} 1-0


[Site "https://www.chess.com"]

[Event "Titled Tuesday Blitz August 17 2021"]
[White "Shkapenko, Pavel"]
[Black "Baches Garcia, Guillermo"]
[WhiteFideId "4151933"]
[BlackFideId "2209764"]
[WhiteElo "2386"]
[BlackElo "2494"]
[Result "1/2-1/2"]
[Round "10"]
[TimeControl "180+1"]
[Date "2021.08.17"]
[WhiteClock "0:01:07"]
[BlackClock "0:00:12"]

1. e4 {[%clk 0:03:00]}  e5 {[%clk 0:03:00]} 2. Nf3 {[%clk 0:02:59]}  Nc6 {[%clk 0:03:00]} 3. Nc3 {[%clk 0:02:49]}  Nf6 {[%clk 0:02:58]} 4. Nxe5 {[%clk 0:02:49]}  Bc5 {[%clk 0:02:45]} 5. d4 {[%clk 0:02:50]}  Bxd4 {[%clk 0:02:24]} 6. Nxc6 {[%clk 0:02:49]}  dxc6 {[%clk 0:02:12]} 7. Bd3 {[%clk 0:02:46]}  Ng4 {[%clk 0:02:03]} 8. Qf3 {[%clk 0:02:06]}  Nxf2 {[%clk 0:01:37]} 9. Rf1 {[%clk 0:02:05]}  Nxd3+ {[%clk 0:01:07]} 10. cxd3 {[%clk 0:01:59]}  Be6 {[%clk 0:01:07]} 11. Be3 {[%clk 0:01:29]}  Bxc3+ {[%clk 0:00:46]} 12. bxc3 {[%clk 0:01:28]}  Qxd3 {[%clk 0:00:44]} 13. Bd4 {[%clk 0:01:25]}  Qxf3 {[%clk 0:00:38]} 14. gxf3 {[%clk 0:01:19]}  f6 {[%clk 0:00:35]} 15. Rg1 {[%clk 0:01:18]}  Kf7 {[%clk 0:00:34]} 16. f4 {[%clk 0:01:18]}  b6 {[%clk 0:00:33]} 17. Kf2 {[%clk 0:01:16]}  Rad8 {[%clk 0:00:30]} 18. f5 {[%clk 0:01:10]}  Bc4 {[%clk 0:00:28]} 19. e5 {[%clk 0:01:07]}  fxe5 {[%clk 0:00:17]} 20. Bxe5 {[%clk 0:01:07]}  Rd2+ {[%clk 0:00:17]} 21. Kf3 {[%clk 0:01:07]}  Rg8 {[%clk 0:00:12]} 1/2-1/2


[Site "https://www.chess.com"]

[Event "Titled Tuesday Blitz August 17 2021"]
[White "Shtyka, Sergey"]
[Black "Malicka, Maria"]
[WhiteFideId "4138465"]
[BlackFideId "1197576"]
[WhiteElo "2064"]
[BlackElo "1882"]
[Result "1-0"]
[Round "10"]
[TimeControl "180+1"]
[Date "2021.08.17"]
[WhiteClock "0:00:53"]
[BlackClock "0:02:19"]

1. e4 {[%clk 0:03:00]}  c5 {[%clk 0:02:58]} 2. Nf3 {[%clk 0:03:01]}  d6 {[%clk 0:02:59]} 3. d4 {[%clk 0:03:00]}  cxd4 {[%clk 0:03:00]} 4. Nxd4 {[%clk 0:03:01]}  Nf6 {[%clk 0:03:00]} 5. Nc3 {[%clk 0:03:01]}  a6 {[%clk 0:03:01]} 6. Bc4 {[%clk 0:03:01]}  e6 {[%clk 0:03:00]} 7. O-O {[%clk 0:03:00]}  Be7 {[%clk 0:03:00]} 8. Be3 {[%clk 0:03:00]}  Qc7 {[%clk 0:03:00]} 9. Bd3 {[%clk 0:02:59]}  Nbd7 {[%clk 0:03:00]} 10. f4 {[%clk 0:02:59]}  O-O {[%clk 0:02:59]} 11. Qf3 {[%clk 0:02:59]}  b5 {[%clk 0:02:57]} 12. a3 {[%clk 0:02:59]}  Bb7 {[%clk 0:02:56]} 13. Qh3 {[%clk 0:02:59]}  g6 {[%clk 0:02:44]} 14. f5 {[%clk 0:02:56]}  e5 {[%clk 0:02:43]} 15. Nf3 {[%clk 0:02:53]}  Nc5 {[%clk 0:02:40]} 16. fxg6 {[%clk 0:02:49]}  hxg6 {[%clk 0:02:40]} 17. Ng5 {[%clk 0:02:43]}  Rfc8 {[%clk 0:02:36]} 18. Rf3 {[%clk 0:02:00]}  Qd7 {[%clk 0:02:34]} 19. Qh6 {[%clk 0:01:53]}  Bf8 {[%clk 0:02:33]} 20. Qh4 {[%clk 0:01:51]}  Bg7 {[%clk 0:02:32]} 21. Raf1 {[%clk 0:01:42]}  Ne6 {[%clk 0:02:28]} 22. Rxf6 {[%clk 0:01:21]}  Bxf6 {[%clk 0:02:27]} 23. Qh7+ {[%clk 0:01:08]}  Kf8 {[%clk 0:02:24]} 24. Rxf6 {[%clk 0:01:09]}  Nxg5 {[%clk 0:02:23]} 25. Bxg5 {[%clk 0:01:07]}  d5 {[%clk 0:02:20]} 26. Qh8+ {[%clk 0:00:58]}  Ke7 {[%clk 0:02:19]} 27. Re6+ {[%clk 0:00:53]} 1-0


[Site "https://www.chess.com"]

[Event "Titled Tuesday Blitz August 17 2021"]
[White "Solon, Nathan"]
[Black "Vasli, Aref"]
[WhiteFideId "2017229"]
[BlackFideId "417521"]
[WhiteElo "2685"]
[BlackElo "2257"]
[Result "0-1"]
[Round "10"]
[TimeControl "180+1"]
[Date "2021.08.17"]
[WhiteClock "0:01:26"]
[BlackClock "0:00:33"]

1. d4 {[%clk 0:03:00]}  Nf6 {[%clk 0:02:59]} 2. c4 {[%clk 0:03:00]}  e6 {[%clk 0:02:59]} 3. Nf3 {[%clk 0:03:00]}  c5 {[%clk 0:02:58]} 4. d5 {[%clk 0:03:00]}  exd5 {[%clk 0:02:58]} 5. cxd5 {[%clk 0:03:01]}  d6 {[%clk 0:02:59]} 6. Nc3 {[%clk 0:03:01]}  g6 {[%clk 0:02:59]} 7. Bf4 {[%clk 0:02:59]}  a6 {[%clk 0:02:59]} 8. a4 {[%clk 0:02:59]}  Bg7 {[%clk 0:02:56]} 9. h3 {[%clk 0:02:59]}  O-O {[%clk 0:02:55]} 10. e3 {[%clk 0:03:00]}  Re8 {[%clk 0:02:49]} 11. Nd2 {[%clk 0:02:58]}  Nbd7 {[%clk 0:02:49]} 12. Be2 {[%clk 0:02:55]}  Ne5 {[%clk 0:02:43]} 13. O-O {[%clk 0:02:53]}  Rb8 {[%clk 0:02:33]} 14. Qc2 {[%clk 0:02:49]}  Bf5 {[%clk 0:02:28]} 15. e4 {[%clk 0:02:47]}  Bc8 {[%clk 0:02:12]} 16. Nc4 {[%clk 0:02:41]}  Nxc4 {[%clk 0:02:08]} 17. Bxc4 {[%clk 0:02:41]}  Nh5 {[%clk 0:02:06]} 18. Bh2 {[%clk 0:02:39]}  Qg5 {[%clk 0:01:20]} 19. Qc1 {[%clk 0:02:39]}  Qe7 {[%clk 0:01:08]} 20. Re1 {[%clk 0:02:25]}  Be5 {[%clk 0:01:09]} 21. Bxe5 {[%clk 0:02:15]}  Qxe5 {[%clk 0:01:10]} 22. Qe3 {[%clk 0:02:06]}  Nf4 {[%clk 0:01:08]} 23. Ne2 {[%clk 0:01:55]}  Nxe2+ {[%clk 0:01:07]} 24. Rxe2 {[%clk 0:01:55]}  b5 {[%clk 0:01:07]} 25. axb5 {[%clk 0:01:53]}  axb5 {[%clk 0:01:07]} 26. Bd3 {[%clk 0:01:53]}  c4 {[%clk 0:01:05]} 27. Bb1 {[%clk 0:01:53]}  b4 {[%clk 0:00:55]} 28. f4 {[%clk 0:01:53]}  Qf6 {[%clk 0:00:46]} 29. e5 {[%clk 0:01:47]}  dxe5 {[%clk 0:00:44]} 30. fxe5 {[%clk 0:01:47]}  Qh4 {[%clk 0:00:45]} 31. Ra7 {[%clk 0:01:42]}  Bb7 {[%clk 0:00:45]} 32. Qf3 {[%clk 0:01:38]}  Qd4+ {[%clk 0:00:40]} 33. Kh2 {[%clk 0:01:26]}  Qxa7 {[%clk 0:00:33]} 0-1


[Site "https://www.chess.com"]